fUST/lending_fUST_20240710
["ID","MTS","AMOUNT","RATE_DAILY","PERIOD"]
[331644587,1720600242340,-158.5,0.00033215,5]
[331644589,1720600242350,-168.0,0.00033226,2]
[331644591,1720600242360,-474.432266,0.00033295,2]
[331644593,1720600242370,-42888.37692498,0.00033333,2]
[331644595,1720600242380,-151.0,0.00033333,7]
[331644597,1720600242390,-1500.000357,0.00033333,7]
[331644599,1720600242405,-1500.000357,0.00033333,7]
[331644601,1720600242415,-9387.02234411,0.00033842,4]
[331644603,1720600242425,-151.0,0.00033842,7]
[331644606,1720600242435,-155.34845,0.00033842,7]
[331644608,1720600242445,-158.5,0.00033911,5]
[331644609,1720600242456,-1183.69391706,0.00033951,2]
[331644611,1720600242466,-455.00685839,0.00034,120]
[331644612,1720600242476,-5000.0,0.00034,32]
[331644613,1720600242486,-366.48323855,0.0003408,120]
[331644614,1720600242496,-151.0,0.00034247,60]
[331644615,1720600242507,-267.492372,0.00034247,60]
[331644616,1720600242516,-366.6405652,0.00034394,2]
[331644617,1720600242527,-367.18392,0.00034421,7]
[331644618,1720600242537,-367.18392,0.00034421,7]
[331644619,1720600242547,-342.315555,0.00034421,7]
[331644620,1720600242556,-342.315555,0.00034421,7]
[331644621,1720600242567,-569.151142,0.00034421,7]
[331644622,1720600242576,-500.030685,0.00034421,14]
[331644623,1720600242586,-569.151142,0.00034421,7]
[331644624,1720600242596,-3611.781749,0.00034421,7]
[331644625,1720600242606,-3611.781749,0.00034421,7]
[331644626,1720600242616,-314708.18244,0.00034436,4]
[331644627,1720600242626,-5292.88975486,0.00034437,2]
[331644628,1720600242635,-264.379763,0.00034458,7]
[331644630,1720600242648,-264.379763,0.00034458,7]
[331644632,1720600242659,-151.0,0.00034458,7]
[331644633,1720600242669,-1902.568805,0.00034458,7]
[331644634,1720600242680,-1902.568805,0.00034458,7]
[331644635,1720600242690,-1249.15972303,0.00034458,5]
[331644636,1720600242701,-2848.7235994,0.00034467,4]
[331644637,1720600242711,-2198.41748245,0.00034491,4]
[331644639,1720600242721,-160.0,0.00034506,4]
[331644641,1720600242731,-1092.79191696,0.00034517,21]
[331644643,1720600242742,-235.67722639,0.00034517,4]
[331644646,1720600242752,-394.15192,0.0003455,2]
[331644648,1720600242767,-209.698295,0.0003455,7]
[331644650,1720600242778,-394.15192,0.0003455,2]
[331644652,1720600242792,-209.698295,0.0003455,7]
[331644654,1720600242803,-333.67288233,0.0003455,2]
[331644656,1720600242813,-904.820281,0.0003455,7]
[331644658,1720600242823,-904.820281,0.0003455,7]
[331644660,1720600242833,-360.96153227,0.0003455,4]
[331644662,1720600242843,-151.0,0.0003455,7]
[331644664,1720600242853,-183.476519,0.0003455,7]
[331644666,1720600242863,-183.476519,0.0003455,7]
[331644668,1720600242873,-1431.99646293,0.00034563,2]
[331644670,1720600242883,-248.909497,0.0003458,7]
[331644672,1720600242892,-248.909497,0.0003458,7]
[331644674,1720600242910,-194.626993,0.0003458,7]
[331644676,1720600242920,-151.0,0.0003458,7]
[331644678,1720600242931,-151.0,0.0003458,7]
[331644680,1720600242941,-266.761945,0.0003458,7]
[331644688,1720600243012,-266.761945,0.0003458,7]
[331644690,1720600243028,-1500.000357,0.0003458,7]
[331644692,1720600243038,-1500.000357,0.0003458,7]
[331644694,1720600243048,-381.36855,0.0003458,7]
[331644696,1720600243058,-381.36855,0.0003458,7]
[331644698,1720600243068,-394.15192,0.0003458,2]
[331644700,1720600243077,-209.698295,0.0003458,7]
[331644702,1720600243087,-394.15192,0.0003458,2]
[331644704,1720600243097,-209.698295,0.0003458,7]
[331644706,1720600243107,-86945.05179867,0.00034593,3]
[331644708,1720600243116,-264.379763,0.00034593,7]
[331644710,1720600243126,-264.379763,0.00034593,7]
[331644712,1720600243135,-151.0,0.00034593,7]
[331644713,1720600243148,-1902.568805,0.00034593,7]
[331644714,1720600243158,-1902.568805,0.00034593,7]
[331644715,1720600243167,-367.18392,0.00034593,7]
[331644716,1720600243177,-367.18392,0.00034593,7]
[331644717,1720600243187,-342.315555,0.00034593,7]
[331644718,1720600243197,-342.315555,0.00034593,7]
[331644719,1720600243207,-569.151142,0.00034593,7]
[331644721,1720600243216,-569.151142,0.00034593,7]
[331644723,1720600243226,-3611.781749,0.00034593,7]
[331644725,1720600243236,-904.820281,0.00034593,7]
[331644727,1720600243246,-3611.781749,0.00034593,7]
[331644729,1720600243255,-904.820281,0.00034593,7]
[331644731,1720600243265,-193.018498,0.00034593,7]
[331644733,1720600243274,-183.476519,0.00034593,7]
[331644735,1720600243283,-183.476519,0.00034593,7]
[331644737,1720600243293,-682.580994,0.00034602,7]
[331644739,1720600243302,-394.15192,0.00034602,2]
[331644741,1720600243312,-209.698295,0.00034602,7]
[331644743,1720600243321,-394.15192,0.00034602,2]
[331644745,1720600243330,-209.698295,0.00034602,7]
[331644747,1720600243339,-158.5,0.00034608,6]
[331644749,1720600243349,-1500.000357,0.00034623,7]
[331644751,1720600243358,-1500.000357,0.00034623,7]
[331644753,1720600243367,-804.98871435,0.00034623,4]
[331644755,1720600243377,-643.66349447,0.00034634,4]
[331644757,1720600243387,-643.66349447,0.00034634,4]
[331644759,1720600243399,-468.05129613,0.00034642,4]
[331644761,1720600243408,-5000.0,0.00034668,45]
[331644763,1720600243417,-1369.45674409,0.00034668,45]
[331644765,1720600243427,-118257.85241303,0.0003468,3]
[331644767,1720600243436,-154.69833824,0.0003468,7]
[331644769,1720600243445,-575.49788648,0.0003468,4]
[331644771,1720600243455,-1026.39620554,0.0003468,4]
[331644773,1720600243464,-5611.49557264,0.0003468,4]
[331644775,1720600243474,-9224.35921246,0.0003468,7]
[331644777,1720600243483,-284.6000077,0.0003468,3]
[331644779,1720600243493,-254.28976292,0.0003468,4]
[331644781,1720600243502,-1000.0,0.0003468,4]
[331644783,1720600243512,-5000.0,0.0003468,30]
[331644785,1720600243522,-394.11469993,0.0003468,2]
[331644787,1720600243531,-303.32193746,0.0003468,4]
[331644789,1720600243540,-2000.0,0.0003468,2]
[331644791,1720600243550,-248.909497,0.0003468,7]
[331644793,1720600243559,-248.909497,0.0003468,7]
[331644795,1720600243568,-151.0,0.0003468,7]
[331644797,1720600243577,-285.382396,0.0003468,7]
[331644799,1720600243587,-266.761945,0.0003468,7]
[331644801,1720600243596,-266.761945,0.0003468,7]
[331644803,1720600243605,-1500.000357,0.0003468,7]
[331644805,1720600243614,-1500.000357,0.0003468,7]
[331644807,1720600243623,-381.36855,0.0003468,7]
[331644809,1720600243632,-381.36855,0.0003468,7]
[331644811,1720600243642,-682.580994,0.0003468,7]
[331644813,1720600243654,-394.15192,0.0003468,2]
[331644815,1720600243663,-209.698295,0.0003468,7]
[331644817,1720600243672,-394.15192,0.0003468,2]
[331644819,1720600243681,-209.698295,0.0003468,7]
[331644821,1720600243689,-264.379763,0.0003468,7]
[331644823,1720600243699,-264.379763,0.0003468,7]
[331644825,1720600243709,-151.0,0.0003468,7]
[331644827,1720600243720,-1902.568805,0.0003468,7]
[331644829,1720600243730,-1902.568805,0.0003468,7]
[331644831,1720600243739,-367.18392,0.0003468,7]
[331644833,1720600243749,-367.18392,0.0003468,7]
[331644835,1720600243758,-342.315555,0.0003468,7]
[331644837,1720600243768,-342.315555,0.0003468,7]
[331644839,1720600243777,-569.151142,0.0003468,7]
[331644841,1720600243789,-569.151142,0.0003468,7]
[331644843,1720600243799,-154.69833824,0.0003468,4]
[331644845,1720600243809,-3611.781749,0.0003468,7]
[331644847,1720600243818,-904.820281,0.0003468,7]
[331644849,1720600243828,-3611.781749,0.0003468,7]
[331644851,1720600243837,-904.820281,0.0003468,7]
[331644853,1720600243847,-183.476519,0.0003468,7]
[331644855,1720600243856,-251.2235225,0.0003468,4]
[331644857,1720600243866,-183.476519,0.0003468,7]
[331644859,1720600243875,-256.84783111,0.00034688,2]
[331644861,1720600243884,-166.04349824,0.00034688,4]
[331644863,1720600243893,-215.83191418,0.00034688,4]
[331644865,1720600243904,-154.83806341,0.00034702,4]
[331644867,1720600243914,-1282.7343476,0.00034728,12]
[331644874,1720600243970,-164.371,0.00034766,2]
[331644876,1720600243980,-250.0,0.00034766,2]
[331644878,1720600243990,-371.76466957,0.00034771,4]
[331644880,1720600243999,-7111.61605436,0.000348,2]
[331644882,1720600244008,-103660.7357737,0.000348,2]
[331644884,1720600244017,-306.208099,0.000348,17]
[331644886,1720600244027,-373.0,0.000348,8]
[331644888,1720600244036,-248.909497,0.000348,7]
[331644890,1720600244045,-248.909497,0.000348,7]
[331644892,1720600244055,-155.688682,0.000348,7]
[331644894,1720600244064,-266.761945,0.000348,7]
[331644896,1720600244073,-266.761945,0.000348,7]
[331644898,1720600244082,-1500.000357,0.000348,7]
[331644900,1720600244091,-1500.000357,0.000348,7]
[331644902,1720600244100,-381.36855,0.000348,7]
[331644904,1720600244109,-381.36855,0.000348,7]
[331644905,1720600244118,-682.580994,0.000348,7]
[331644907,1720600244127,-394.15192,0.000348,2]
[331644909,1720600244137,-209.698295,0.000348,7]
[331644911,1720600244149,-394.15192,0.000348,2]
[331644913,1720600244158,-209.698295,0.000348,7]
[331644915,1720600244168,-264.379763,0.000348,7]
[331644917,1720600244177,-264.379763,0.000348,7]
[331644919,1720600244186,-150.05809,0.000348,2]
[331644921,1720600244196,-151.0,0.000348,7]
[331644923,1720600244205,-1902.568805,0.000348,7]
[331644925,1720600244216,-1902.568805,0.000348,7]
[331644927,1720600244225,-367.18392,0.000348,7]
[331644929,1720600244235,-367.18392,0.000348,7]
[331644931,1720600244244,-342.315555,0.000348,7]
[331644933,1720600244253,-342.315555,0.000348,7]
[331644935,1720600244263,-569.151142,0.000348,7]
[331644937,1720600244272,-569.151142,0.000348,7]
[331644939,1720600244281,-1003.764437,0.000348,16]
[331644941,1720600244290,-3611.781749,0.000348,7]
[331644943,1720600244300,-904.820281,0.000348,7]
[331644945,1720600244309,-3611.781749,0.000348,7]
[331644947,1720600244318,-904.820281,0.000348,7]
[331644949,1720600244327,-183.476519,0.000348,7]
[331644951,1720600244336,-183.476519,0.000348,7]
[331644953,1720600244345,-706.13958093,0.00034811,4]
[331644955,1720600244355,-1000.0,0.0003489,3]
[331644957,1720600244364,-197.30576581,0.00034899,2]
[331644959,1720600244373,-19218.16095564,0.000349,2]
[331644961,1720600244383,-447.41491971,0.000349,3]
[331644963,1720600244392,-153.0,0.00034959,2]
[331644965,1720600244404,-153.0,0.00034959,2]
[331644967,1720600244413,-214.59695951,0.00034989,4]
[331644969,1720600244423,-214.59695951,0.00034989,4]
[331644971,1720600244432,-208.83853644,0.00034999,4]
[331644973,1720600244441,-1662.68463684,0.00035,4]
[331644975,1720600244450,-9999.999999,0.00035,14]
[331644977,1720600244459,-184.85299213,0.00035,120]
[331644979,1720600244468,-1499.92380893,0.00035,4]
[331644981,1720600244477,-9607.0,0.00035,10]
[331644983,1720600244486,-500.0,0.00035,2]
[331644985,1720600244496,-1923.14282526,0.00035,2]
[331644987,1720600244506,-5677.57154517,0.00035,10]
[331644989,1720600244515,-399.8714875,0.00035,2]
[331644991,1720600244524,-154.69833824,0.00035,2]
[331644993,1720600244533,-538.34821022,0.00035,30]
[331644995,1720600244542,-151.0,0.00035025,2]
[331644997,1720600244552,-160.0,0.00035035,5]
[331644999,1720600244561,-1600.0,0.00035134,7]
[331645001,1720600244570,-1182.68464987,0.00035259,4]
[331645003,1720600244579,-154.69833824,0.00035292,4]
[331645005,1720600244588,-154.69833824,0.00035292,4]
[331645007,1720600244596,-158.5,0.00035304,6]
[331645008,1720600244606,-153.0,0.00035507,2]
[331645010,1720600244615,-155.45127974,0.00035581,4]
[331645012,1720600244624,-1000.0,0.00035616,3]
[331645015,1720600244634,-1553.20519785,0.00035616,30]
[331645017,1720600244643,-3215.77,0.00035616,30]
[331645019,1720600244655,-3215.97022005,0.00035616,30]
[331645020,1720600244664,-1814.63,0.00035616,30]
[331645022,1720600244673,-1814.63,0.00035616,30]
[331645024,1720600244682,-1814.63,0.00035616,30]
[331645026,1720600244691,-1814.63,0.00035616,30]
[331645028,1720600244699,-1814.63,0.00035616,30]
[331645030,1720600244708,-1814.63,0.00035616,30]
[331645032,1720600244718,-1814.63,0.00035616,30]
[331645034,1720600244727,-1814.63,0.00035616,30]
[331645036,1720600244736,-1814.63,0.00035616,30]
[331645038,1720600244745,-1814.63,0.00035616,30]
[331645040,1720600244755,-1814.63,0.00035616,30]
[331645042,1720600244763,-1814.63,0.00035616,30]
[331645050,1720600244820,-1814.63,0.00035616,30]
[331645052,1720600244830,-1814.63,0.00035616,30]
[331645054,1720600244838,-1814.63,0.00035616,30]
[331645055,1720600244847,-1814.63,0.00035616,30]
[331645057,1720600244856,-1814.63,0.00035616,30]
[331645059,1720600244865,-1814.63,0.00035616,30]
[331645061,1720600244875,-1814.63,0.00035616,30]
[331645064,1720600244884,-1814.63,0.00035616,30]
[331645066,1720600244893,-1814.63,0.00035616,30]
[331645068,1720600244905,-1814.63,0.00035616,30]
[331645070,1720600244915,-1814.63,0.00035616,30]
[331645072,1720600244925,-1814.86177586,0.00035616,30]
[331645074,1720600244935,-500.0,0.00035616,30]
[331645076,1720600244945,-500.0,0.00035616,30]
[331645078,1720600244953,-313.91983114,0.00035616,30]
[331645080,1720600244962,-500.0,0.00035616,30]
[331645082,1720600244972,-500.0,0.00035616,30]
[331645083,1720600244981,-500.0,0.00035616,30]
[331645085,1720600244990,-500.0,0.00035616,30]
[331645088,1720600244999,-598.60898549,0.00035616,30]
[331645090,1720600245009,-500.0,0.00035616,30]
[331645092,1720600245018,-643.60210531,0.00035616,30]
[331645094,1720600245028,-500.0,0.00035616,30]
[331645096,1720600245037,-500.0,0.00035616,30]
[331645098,1720600245046,-176.94458662,0.00035616,30]
[331645100,1720600245056,-500.0,0.00035616,30]
[331645102,1720600245066,-500.0,0.00035616,30]
[331645104,1720600245075,-500.0,0.00035616,30]
[331645106,1720600245085,-500.0,0.00035616,30]
[331645108,1720600245094,-500.0,0.00035616,30]
[331645110,1720600245103,-500.0,0.00035616,30]
[331645112,1720600245112,-615.80910782,0.00035616,30]
[331645114,1720600245122,-558.52923756,0.00035616,30]
[331645116,1720600245131,-500.0,0.00035616,30]
[331645118,1720600245140,-500.0,0.00035616,30]
[331645120,1720600245151,-500.0,0.00035616,30]
[331645121,1720600245160,-500.0,0.00035616,30]
[331645122,1720600245169,-349.1670993,0.00035616,30]
[331645123,1720600245178,-500.0,0.00035616,30]
[331645125,1720600245187,-369.11106497,0.00035616,30]
[331645127,1720600245197,-500.0,0.00035616,2]
[331645129,1720600245206,-500.0,0.00035616,2]
[331645131,1720600245215,-321.19763501,0.00035616,2]
[331645132,1720600245225,-500.0,0.00035616,30]
[331645134,1720600245235,-500.0,0.00035616,30]
[331645136,1720600245244,-500.0,0.00035616,30]
[331645138,1720600245254,-500.0,0.00035616,30]
[331645140,1720600245263,-500.0,0.00035616,30]
[331645142,1720600245273,-500.0,0.00035616,30]
[331645144,1720600245282,-500.0,0.00035616,30]
[331645147,1720600245292,-500.0,0.00035616,30]
[331645149,1720600245301,-500.0,0.00035616,30]
[331645152,1720600245311,-500.0,0.00035616,30]
[331645154,1720600245321,-500.0,0.00035616,30]
[331645156,1720600245332,-559.91792791,0.00035616,30]
[331645158,1720600245341,-500.0,0.00035616,2]
[331645160,1720600245350,-500.0,0.00035616,2]
[331645163,1720600245360,-500.0,0.00035616,2]
[331645166,1720600245369,-500.0,0.00035616,2]
[331645168,1720600245380,-500.0,0.00035616,2]
[331645170,1720600245389,-500.0,0.00035616,2]
[331645172,1720600245401,-500.0,0.00035616,2]
[331645174,1720600245410,-500.0,0.00035616,2]
[331645176,1720600245419,-500.0,0.00035616,2]
[331645178,1720600245431,-500.0,0.00035616,2]
[331645180,1720600245439,-500.0,0.00035616,2]
[331645182,1720600245449,-583.29349853,0.00035616,2]
[331645183,1720600245459,-500.0,0.00035616,2]
[331645185,1720600245469,-500.0,0.00035616,2]
[331645187,1720600245478,-500.0,0.00035616,2]
[331645189,1720600245488,-489.61326615,0.00035616,2]
[331645191,1720600245497,-248.909497,0.00035616,7]
[331645193,1720600245506,-248.909497,0.00035616,7]
[331645195,1720600245515,-266.761945,0.00035616,7]
[331645197,1720600245525,-266.761945,0.00035616,7]
[331645199,1720600245534,-1500.000357,0.00035616,7]
[331645201,1720600245543,-1500.000357,0.00035616,7]
[331645202,1720600245552,-381.36855,0.00035616,7]
[331645203,1720600245603,-381.36855,0.00035616,7]
[331645204,1720600245616,-682.580994,0.00035616,7]
[331645205,1720600245625,-394.15192,0.00035616,2]
[331645206,1720600245635,-209.698295,0.00035616,7]
[331645207,1720600245644,-394.15192,0.00035616,2]
[331645208,1720600245655,-209.698295,0.00035616,7]
[331645209,1720600245664,-264.379763,0.00035616,7]
[331645210,1720600245674,-264.379763,0.00035616,7]
[331645211,1720600245683,-151.0,0.00035616,7]
[331645212,1720600245692,-1902.568805,0.00035616,7]
[331645213,1720600245701,-1902.568805,0.00035616,7]
[331645214,1720600245711,-367.18392,0.00035616,7]
[331645216,1720600245721,-367.18392,0.00035616,7]
[331645218,1720600245730,-342.315555,0.00035616,7]
[331645220,1720600245739,-342.315555,0.00035616,7]
[331645222,1720600245749,-569.151142,0.00035616,7]
[331645224,1720600245758,-569.151142,0.00035616,7]
[331645225,1720600245768,-3611.781749,0.00035616,7]
[331645226,1720600245778,-904.820281,0.00035616,7]
[331645227,1720600245789,-3611.781749,0.00035616,7]
[331645229,1720600245799,-904.820281,0.00035616,7]
[331645232,1720600245808,-183.476519,0.00035616,7]
[331645236,1720600245819,-183.476519,0.00035616,7]
[331645238,1720600245829,-500.0,0.00035616,7]
[331645240,1720600245839,-409.23404125,0.00035616,7]
[331645242,1720600245848,-500.0,0.00035616,7]
[331645244,1720600245858,-500.0,0.00035616,7]
[331645246,1720600245868,-500.0,0.00035616,7]
[331645248,1720600245878,-500.0,0.00035616,7]
[331645250,1720600245888,-500.0,0.00035616,7]
[331645252,1720600245897,-500.0,0.00035616,7]
[331645253,1720600245908,-7905.18,0.00035616,3]
[331645256,1720600245918,-6587.65,0.00035616,3]
[331645258,1720600245929,-5489.71,0.00035616,3]
[331645260,1720600245940,-150.0,0.00035717,2]
[331645262,1720600245949,-153.0,0.00035781,2]
[331645264,1720600245960,-153.0,0.00035781,2]
[331645267,1720600245980,-306.0,0.00035781,2]
[331645269,1720600245997,-153.0,0.00035781,2]
[331645270,1720600246019,-153.0,0.00035781,2]
[331645271,1720600246042,-153.0,0.00035781,2]
[331645273,1720600246061,-153.0,0.00035781,2]
[331645274,1720600246081,-160.0,0.0003583,5]
[331645275,1720600246095,-1406.0,0.0003587,2]
[331645276,1720600246112,-150.0,0.0003587,2]
[331645277,1720600246131,-530.9,0.000359,62]
[331645278,1720600246153,-250.0,0.00036,120]
[331645279,1720600246167,-290.13777505,0.00036,2]
[331645280,1720600246183,-373.0,0.00036,10]
[331645281,1720600246200,-265.0,0.00036,10]
[331645282,1720600246217,-158.5,0.00036,6]
[331645283,1720600246234,-202.0,0.00036,2]
[331645284,1720600246248,-202.0,0.00036,2]
[331645285,1720600246263,-160.0,0.00036095,6]
[331645286,1720600246278,-168.0,0.00036549,2]
[331645287,1720600246292,-2478.60327244,0.00036684,2]
[331645288,1720600246306,-904.820281,0.00036684,7]
[331645289,1720600246320,-904.820276,0.00036684,7]
[331645290,1720600246334,-183.476519,0.00036684,7]
[331645291,1720600246349,-183.476527,0.00036684,7]
[331645292,1720600246364,-264.379763,0.00036687,7]
[331645293,1720600246379,-264.379763,0.00036687,7]
[331645294,1720600246393,-151.0,0.00036687,7]
[331645295,1720600246407,-1902.568805,0.00036687,7]
[331645298,1720600246422,-1902.568805,0.00036687,7]
[331645301,1720600246437,-306.0,0.00036795,2]
[331645303,1720600246452,-243.43650151,0.00037,4]
[331645306,1720600246467,-500.0,0.00037,3]
[331645308,1720600246482,-157.64606829,0.00037016,7]
[331645311,1720600246497,-543.09103463,0.00037021,7]
[331645313,1720600246511,-160.0,0.00037154,7]
[331645314,1720600246526,-290.79810635,0.00037154,5]
[331645315,1720600246541,-160.0,0.00037154,6]
[331645316,1720600246619,-160.0,0.00037154,5]
[331645317,1720600246633,-471.68236775,0.00037259,4]
[331645318,1720600246642,-682.580992,0.0003732,7]
[331645319,1720600246653,-394.15192,0.0003732,2]
[331645320,1720600246662,-209.698295,0.0003732,7]
[331645321,1720600246671,-394.15193,0.0003732,2]
[331645322,1720600246681,-209.698302,0.0003732,7]
[331645323,1720600246690,-367.18392,0.0003732,7]
[331645324,1720600246699,-367.18392,0.0003732,7]
[331645325,1720600246708,-342.315555,0.0003732,7]
[331645326,1720600246718,-342.315555,0.0003732,7]
[331645327,1720600246727,-569.151142,0.0003732,7]
[331645328,1720600246737,-569.151142,0.0003732,7]
[331645329,1720600246746,-3611.781749,0.0003732,7]
[331645330,1720600246755,-3611.781749,0.0003732,7]
[331645331,1720600246764,-161.23822928,0.00037431,7]
[331645332,1720600246774,-161.23822928,0.00037479,7]
[331645333,1720600246783,-160.41353331,0.00037719,7]
[331645334,1720600246795,-248.909497,0.00037766,7]
[331645335,1720600246805,-248.909497,0.00037766,7]
[331645336,1720600246814,-266.761945,0.00037766,7]
[331645337,1720600246825,-266.761945,0.00037766,7]
[331645338,1720600246834,-1500.000357,0.00037766,7]
[331645339,1720600246844,-1500.000357,0.00037766,7]
[331645340,1720600246853,-381.36855,0.00037766,7]
[331645341,1720600246862,-381.36855,0.00037766,7]
[331645342,1720600246872,-150.0,0.00037766,2]
[331645343,1720600246881,-150.0,0.00037766,2]
[331645345,1720600246892,-543.09103463,0.00037832,7]
[331645347,1720600246902,-543.09103463,0.00037837,7]
[331645348,1720600246914,-1202.45638639,0.000379,120]
[331645350,1720600246926,-160.41353331,0.00037938,7]
[331645352,1720600246938,-168.0,0.00037973,2]
[331645354,1720600246949,-500.0,0.00038,2]
[331645356,1720600246959,-1000.0,0.00038,38]
[331645358,1720600246970,-9801.91965423,0.00038,120]
[331645360,1720600246980,-500.0,0.00038,120]
[331645362,1720600246991,-500.0,0.00038,3]
[331645364,1720600247000,-712.78378691,0.00038,120]
[331645366,1720600247010,-184.85299213,0.00038,120]
[331645368,1720600247020,-543.09103463,0.0003812,7]
[331645370,1720600247030,-150.0,0.00038237,4]
[331645372,1720600247039,-683.0,0.00038348,5]
[331645374,1720600247049,-509.87141559,0.00038356,14]
[331645376,1720600247059,-500.0,0.00038356,14]
[331645377,1720600247068,-500.0,0.00038356,14]
[331645378,1720600247078,-500.0,0.00038356,14]
[331645379,1720600247087,-500.0,0.00038356,14]
[331645380,1720600247097,-500.0,0.00038356,14]
[331645381,1720600247108,-500.0,0.00038356,14]
[331645382,1720600247118,-587.77334868,0.00038356,14]
[331645383,1720600247127,-248.909497,0.00038368,14]
[331645384,1720600247137,-248.909497,0.00038368,14]
[331645385,1720600247147,-248.909497,0.00038368,14]
[331645386,1720600247158,-248.909497,0.00038368,14]
[331645387,1720600247167,-248.909497,0.00038368,14]
[331645388,1720600247177,-248.909497,0.00038368,14]
[331645389,1720600247186,-1423.75709669,0.00038448,5]
[331645390,1720600247196,-11149.10638235,0.00038449,2]
[331645391,1720600247206,-787.5677482,0.00038449,2]
[331645392,1720600247216,-4120.49684617,0.00038449,2]
[331645393,1720600247225,-1039.53957719,0.00038449,2]
[331645394,1720600247235,-25518.01695867,0.00038449,7]
[331645395,1720600247245,-10022.43071075,0.00038449,2]
[331645396,1720600247254,-511.85013536,0.00038449,2]
[331645397,1720600247264,-18867.86120696,0.00038449,2]
[331645398,1720600247274,-434.1734614,0.00038449,2]
[331645399,1720600247284,-221.77627263,0.00038449,2]
[331645400,1720600247294,-3035.74927438,0.00038449,2]
[331645401,1720600247303,-3620.90818046,0.00038449,2]
[331645402,1720600247313,-1011.35573919,0.00038449,2]
[331645403,1720600247323,-148745.32612495,0.00038449,2]
[331645404,1720600247333,-151.0,0.00038449,7]
[331645405,1720600247343,-87889.20017637,0.00038449,2]
[331645406,1720600247352,-100000.0,0.00038449,5]
[331645407,1720600247362,-1004.82364272,0.00038449,5]
[331645408,1720600247372,-5036.21245386,0.00038449,4]
[331645409,1720600247383,-5000.0,0.00038449,31]
[331645410,1720600247393,-3228.45550377,0.00038449,120]
[331645411,1720600247406,-435.970249,0.00038449,120]
[331645412,1720600247415,-512.26689138,0.00038449,30]
[331645413,1720600247425,-500.0,0.00038449,30]
[331645414,1720600247435,-500.0,0.00038449,30]
[331645415,1720600247444,-500.0,0.00038449,30]
[331645416,1720600247457,-500.0,0.00038449,30]
[331645417,1720600247467,-500.0,0.00038449,30]
[331645418,1720600247477,-500.0,0.00038449,30]
[331645419,1720600247487,-500.0,0.00038449,30]
[331645420,1720600247497,-500.0,0.00038449,30]
[331645421,1720600247507,-500.0,0.00038449,30]
[331645422,1720600247517,-500.0,0.00038449,30]
[331645423,1720600247527,-500.0,0.00038449,30]
[331645424,1720600247537,-341.42782935,0.00038449,30]
[331645425,1720600247547,-508.41772906,0.00038449,30]
[331645426,1720600247557,-501.7800301,0.00038449,30]
[331645427,1720600247567,-503.76980122,0.00038449,30]
[331645428,1720600247576,-500.0,0.00038449,30]
[331645429,1720600247586,-500.0,0.00038449,30]
[331645430,1720600247595,-500.0,0.00038449,30]
[331645431,1720600247606,-541.26377703,0.00038449,30]
[331645432,1720600247616,-500.0,0.00038449,30]
[331645433,1720600247625,-523.75496297,0.00038449,30]
[331645434,1720600247635,-500.0,0.00038449,30]
[331645435,1720600247644,-500.0,0.00038449,30]
[331645436,1720600247658,-186.43125874,0.00038449,30]
[331645437,1720600247668,-500.0,0.00038449,30]
[331645438,1720600247678,-500.0,0.00038449,30]
[331645442,1720600247734,-500.0,0.00038449,30]
[331645444,1720600247752,-507.65491203,0.00038449,30]
[331645446,1720600247762,-504.94315929,0.00038449,30]
[331645448,1720600247772,-560.25,0.00038449,30]